[Event "Oceania Zonal Open 2023"]
[Site "Melbourne"]
[Date "2023.01.25"]
[Round "4.6"]
[White "Gong, Patrick"]
[Black "Bayaca, Sterling"]
[Result "1-0"]
[ECO "C47"]
[WhiteElo "2292"]
[BlackElo "2054"]
[Annotator "TA"]
[PlyCount "124"]
[EventDate "2023.01.09"]
[EventType "swiss"]
[EventCountry "AUS"]
[SourceTitle "playchess.com"]
[Source "ChessBase"]
[SourceQuality "1"]
[TimeControl "5400+30"]

{[%evp 17,124,0,5,0,0,0,3,0,0,0,14,21,26,0,7,1,4,0,0,0,0,0,0,0,0,0,0,-21,0,-31,-22,-25,-33,-15,-5,-7,0,-40,44,41,46,27,72,68,141,140,143,153,131,143,220,210,212,206,392,357,398,384,393,400,400,381,350,358,358,358,360,358,350,345,469,456,358,291,345,345,483,461,515,405,381,380,397,385,29960,29963,29960,29963,29965,29966,29967,29966,29966,29965,29962,29957,29977,29977,29981,29982,29982,29983,29983,29984,29984,29982,29982,29983,29983]} 1. e4 {[%emt 0:00:14]} e5 {[%emt 0:00:07]} 2. Nf3 {[%emt 0:00:19]} Nc6 {[%emt 0:00:07]} 3. Nc3 {[%emt 0:00:21]} Nf6 {[%emt 0:00:12]} 4. d4 {[%emt 0:00:19]} exd4 {[%emt 0:00:09]} 5. Nxd4 {[%emt 0:00:06]} Bb4 {[%emt 0:00:11]} 6. Nxc6 {[%emt 0:00:12]} bxc6 {[%emt 0:00:14]} 7. Bd3 {[%emt 0:00:09]} O-O {[%emt 0:00:36]} 8. O-O {[%emt 0:00:09]} d5 {[%emt 0:00:07]} 9. exd5 {[%emt 0:00:06]} cxd5 {[%emt 0:00:10]} 10. h3 {[%emt 0:00:17] C47: Scotch Four Knights and Four Knights with 4 g3.} c6 {[%emt 0:03:22]} 11. Qf3 {[%emt 0:00:19]} Be6 {[%emt 0:09:28]} 12. Bf4 {[%emt 0:00:44] The position is equal.} Bd6 {[%emt 0:01:07]} 13. Ne2 {[%emt 0:02:54]} Rb8 {[%emt 0:01:56]} 14. b3 {[%emt 0:01:04]} Re8 {[%emt 0:02:11]} 15. Rad1 {[%emt 0:04:01]} Qc7 {[%emt 0:02:53]} 16. c4 {[%emt 0:06:02] [#]} Rbd8 $146 {[%emt 0:05:27]} ({Predecessor:} 16... Bxf4 17. Nxf4 Qa5 18. cxd5 cxd5 19. Bb1 Ne4 20. Nxe6 Rxe6 21. Qd3 Nf6 22. Qd2 Qb6 {0-1 Kadianis,G (1965)-Moshovakis,A (1751) Heraklion Gazi op 11th 2015 (7)}) 17. c5 {[%emt 0:08:53]} Bxf4 {[%emt 0:01:14]} 18. Qxf4 {[%emt 0:00:38]} Qxf4 {[%emt 0:03:09]} 19. Nxf4 {[%emt 0:00:59]} Nd7 {[%emt 0:03:45]} 20. Rc1 {[%emt 0:03:11]} Ne5 {[%emt 0:04:58]} 21. Rfe1 {[%emt 0:03:06]} Bc8 {[%emt 0:10:33] [#] And now ...g5 would win.} 22. h4 {[%emt 0:08:16]} Kf8 {[%emt 0:05:01]} 23. Bb1 {[%emt 0:13:40][%cal Of4d3]} (23. Bxh7 g6 24. Re3 Re7 $15) 23... Ba6 {[%emt 0:02:01]} 24. Red1 {[%emt 0:01:09][%cal Be1d1,Bd1d4,Bd4a4][%mdl 32]} Re7 {[%emt 0:09:21]} 25. f3 {[%emt 0:04:20]} (25. Bxh7 $2 g6 26. Rc3 Kg7 27. Bxg6 fxg6 $19) 25... Rde8 {[%emt 0:00:46]} 26. Kf2 {[%emt 0:00:51]} (26. Bxh7 $2 g6 27. Rd4 Kg7 28. Bxg6 Nxg6 $19) 26... g6 {[%emt 0:09:42]} 27. Rd4 {[%emt 0:03:10]} f6 {[%emt 0:02:07]} (27... Bb5 $1 $15) 28. Ra4 $14 {[%emt 0:03:03]} Bc8 {[%emt 0:08:15]} 29. Rd1 {[%emt 0:01:54][%cal Bc1d1,Bd1d2,Bd2c2,Bc2c5][%mdl 32]} Kg7 {[%emt 0:02:11]} 30. Rd2 {[%emt 0:01:30] White now steadily converts the win.} Nd7 {[%emt 0:01:36]} ({Better is} 30... f5 $14) 31. Rxa7 $16 {[%emt 0:04:02] White is much more active.} Nxc5 {[%emt 0:00:18]} 32. Rxe7+ {[%emt 0:01:01]} Rxe7 {[%emt 0:00:01]} 33. Rc2 {[%emt 0:00:31]} Bf5 {[%emt 0:08:26]} (33... Ne6 $16) 34. Rxc5 $18 {[%emt 0:05:19]} Bxb1 {[%emt 0:00:02][%mdl 4096] Endgame KRB-KRN} 35. a4 {[%emt 0:00:42][%cal Ba2a4,Ba4a5,Ba5a6][%mdl 32]} (35. Rxc6 $6 Bxa2 36. Nxd5 Rb7 $16) 35... Rb7 $2 {[%emt 0:02:54]} (35... Ba2 36. b4 (36. Rxc6 Bxb3 37. a5 Kf7 $16) 36... g5) 36. Ne6+ {[%emt 0:00:39]} (36. Rxc6 Rxb3 37. a5 (37. Nxd5 Ra3 $18) 37... Rb2+ 38. Ke1 g5 $18) 36... Kg8 {[%emt 0:00:33]} 37. Nd4 {[%emt 0:00:14]} (37. Rxc6 Rxb3 38. a5 Rb2+ 39. Kg3 Ra2 $18) 37... Ba2 {[%emt 0:00:42]} 38. a5 {[%emt 0:00:46]} (38. Rxc6 Bxb3 39. a5 (39. Rxf6 Bxa4 40. g4 Be8 $16) 39... Bc4 $18) (38. Nxc6 Rxb3 39. Ne7+ (39. Rxd5 $2 {perishes.} Rb2+ {[%mdl 64] Discovered Attack} 40. Kg3 Bxd5 $19) 39... Kf7 40. Nxd5 Ke6 $16) 38... Bxb3 {[%emt 0:02:16]} 39. a6 {[%emt 0:00:15]} ({Less strong is} 39. Rxc6 Bc4 40. Rb6 (40. Rxf6 Rb2+ 41. Kg3 Kg7 $18) 40... Ra7 $18) 39... Ra7 {[%emt 0:00:15]} 40. Nxb3 {[%emt 0:00:10]} (40. Rxc6 Bc4 $11) 40... Rxa6 {[%emt 0:00:02] KRN-KR} 41. Nd4 {[%emt 0:00:15]} Ra4 {[%emt 0:00:28]} 42. Nxc6 {[%emt 0:00:32]} Rxh4 {[%emt 0:00:14]} 43. Rxd5 {[%emt 0:00:32]} Kf7 {[%emt 0:00:45]} 44. Nd4 {[%emt 0:00:32]} Ke7 {[%emt 0:00:49]} 45. Ne2 {[%emt 0:01:07]} Ra4 {[%emt 0:00:13]} 46. Rb5 {[%emt 0:00:11]} h5 {[%emt 0:00:23]} 47. Nc3 {[%emt 0:00:39] Prevents Ra2+} Ra6 {[%emt 0:00:33]} 48. Rb7+ {[%emt 0:00:15]} Ke6 {[%emt 0:00:14]} 49. Ne4 {[%emt 0:00:10] White wants to mate with Nc5+.} Rc6 {[%emt 0:00:23] Prevents Nc5+.} 50. Ra7 {[%emt 0:00:16][%cal Oa7a6] White threatens Ra6! and mate.} g5 $2 {[%emt 0:01:46] [#]} (50... Kd5 $18 51. Ng3 f5) 51. Ra6 $3 {[%emt 0:00:36][%mdl 576] Decoy. White mates.} Rxa6 {[%emt 0:00:08] KR-KN} 52. Nc5+ {[%emt 0:00:06]} Kf5 {[%emt 0:00:35]} 53. Nxa6 {[%emt 0:00:05] KN-K3P} g4 {[%emt 0:00:24]} 54. Nb4 {[%emt 0:00:56]} h4 {[%emt 0:00:28]} 55. Nd5 {[%emt 0:00:47]} Ke5 {[%emt 0:01:16]} 56. Ne7 {[%emt 0:00:31]} f5 {[%emt 0:00:46]} 57. fxg4 {[%emt 0:00:44]} h3 {[%emt 0:00:31]} 58. gxh3 {[%emt 0:00:23]} fxg4 {[%emt 0:00:02]} 59. h4 {[%emt 0:00:13]} ({Not} 59. hxg4 Kf4 $11) 59... Kf4 {[%emt 0:00:12]} 60. Nd5+ {[%emt 0:00:14]} Ke5 {[%emt 0:00:20]} 61. Ne3 {[%emt 0:00:20]} Kf4 {[%emt 0:00:35]} 62. Ng2+ {[%emt 0:00:06]} Ke4 {[%emt 0:00:00] Weighted Error Value: White=0.07 (flawless) /Black=0.34} 1-0

[Event "Oceania Zonal Open 2023"]
[Site "Melbourne"]
[Date "2023.01.26"]
[Round "4.7"]
[White "Rujevic, Mirko"]
[Black "Brown, Joshua"]
[Result "1/2-1/2"]
[ECO "B34"]
[WhiteElo "2141"]
[BlackElo "1865"]
[Annotator "TA"]
[PlyCount "104"]
[EventDate "2023.01.09"]
[EventType "swiss"]
[EventCountry "AUS"]
[SourceTitle "playchess.com"]
[Source "ChessBase"]
[SourceQuality "1"]
[TimeControl "5400+30"]

{[%evp 25,103,-5,-14,-18,-26,-48,-55,-45,-18,-24,-12,-16,-20,-18,-9,-39,-31,-40,-38,-41,-25,-29,-22,-22,-14,-15,-14,-19,-10,-31,-27,-18,-30,-60,-57,-56,-62,-48,0,0,0,0,0,0,0,-8,-8,-8,0,0,0,0,8,8,29,8,44,8,60,52,807,762,648,523,491,488,491,0,0,0,0,0,0,0,0,0,0,0,0,0]} 1. e4 {[%emt 15:06:27]} c5 {[%emt 0:00:43]} 2. Nf3 {[%emt 0:00:17]} Nc6 {[%emt 0:00:06]} 3. d4 {[%emt 0:00:34]} cxd4 {[%emt 0:00:08]} 4. Nxd4 {[%emt 0:00:09]} g6 {[%emt 0:00:11]} 5. Be3 {[%emt 0:03:43]} Nf6 {[%emt 0:00:30]} 6. Nc3 {[%emt 0:01:31]} Bg7 {[%emt 0:00:17]} 7. Be2 {[%emt 0:06:01]} O-O {[%emt 0:00:26]} 8. O-O {[%emt 0:00:45]} d5 {[%emt 0:00:12]} 9. exd5 {[%emt 0:20:59]} Nb4 {[%emt 0:00:20]} 10. Qd2 {[%emt 0:12:20]} Nbxd5 {[%emt 0:02:02]} 11. Nxd5 {[%emt 0:02:35]} Nxd5 {[%emt 0:00:41][%cal Bf6d5,Bd5f4,Bf4h3][%mdl 32]} 12. Bh6 {[%emt 0:01:22]} e5 {[%emt 0:07:40]} 13. Bxg7 {[%emt 0:01:43]} Kxg7 {[%emt 0:01:58]} 14. Nb3 {[%emt 0:03:49] B34: Sicilian: Accelerated Dragon with 5 Nc3: sidelines.} (14. Nb5 {seems wilder.} Nf4 15. Rfd1 Qg5 16. Bf3) 14... Nf4 {[%emt 0:11:36] [#] White must now prevent ...Qxd2.} 15. Bf3 {[%emt 0:08:03]} Qxd2 {[%emt 0:06:34]} 16. Nxd2 {[%emt 0:00:03] Black is slightly better.} f5 {[%emt 0:00:12]} 17. g3 {[%emt 0:01:46]} Nh3+ {[%emt 0:09:22]} 18. Kg2 {[%emt 0:01:10]} Ng5 {[%emt 0:03:30]} 19. h4 {[%emt 0:02:22] [#]} Ne6 $146 {[%emt 0:02:49]} ({Predecessor:} 19... Nf7 20. Nb3 e4 21. Be2 b6 22. Rad1 Ne5 23. Nd4 Kf6 24. f4 exf3+ 25. Bxf3 Nxf3 26. Nxf3 {½-½ Centgraf,J (2171)-Peczeli,Z (2100) HUN-chT2 Breyer 1516 2015 (2.4)}) 20. Kg1 {[%emt 0:04:26]} e4 {[%emt 0:05:16]} 21. Bg2 {[%emt 0:00:12]} Bd7 {[%emt 0:01:14]} 22. Rfd1 {[%emt 0:05:04][%cal Od2e4]} Bb5 {[%emt 0:11:32]} 23. Bf1 {[%emt 0:13:17]} Bxf1 {[%emt 0:00:12]} 24. Nxf1 {[%emt 0:00:06]} Rfd8 {[%emt 0:00:30]} 25. Ne3 {[%emt 0:01:39]} Nd4 {[%emt 0:02:09]} 26. Kf1 {[%emt 0:00:55]} Rac8 {[%emt 0:02:00]} 27. Rd2 {[%emt 0:02:47]} Nf3 {[%emt 0:05:16]} 28. Rxd8 {[%emt 0:00:05]} Rxd8 {[%emt 0:00:05]} 29. Rd1 {[%emt 0:00:15]} Rxd1+ {[%emt 0:00:44]} 30. Nxd1 $15 {[%emt 0:00:01][%mdl 4096] Endgame KN-KN} Kf6 {[%emt 0:00:42][%cal Of5f4]} 31. Ne3 {[%emt 0:01:35]} g5 {[%emt 0:04:46]} (31... Ke6 $15 {might be stronger.}) 32. hxg5+ $11 {[%emt 0:00:10]} Kxg5 {[%emt 0:00:45]} 33. Nc4 {[%emt 0:00:25]} b5 {[%emt 0:10:50]} 34. Nd6 {[%emt 0:00:02]} b4 {[%emt 0:00:28]} 35. Ke2 {[%emt 0:00:49]} Nd4+ {[%emt 0:01:51]} 36. Kd2 {[%emt 0:00:03]} Kg4 {[%emt 0:03:36] [#] Strongly threatening ...Kf3.} 37. c3 $1 {[%emt 0:00:22]} Nc6 {[%emt 0:00:52]} 38. Ke3 {[%emt 0:01:36]} a5 {[%emt 0:02:08]} 39. c4 {[%emt 0:02:15]} a4 {[%emt 0:03:02]} 40. c5 {[%emt 0:00:16]} h5 {[%emt 0:01:55]} 41. a3 {[%emt 0:01:29]} b3 {[%emt 0:00:59]} ({Better is} 41... bxa3 $11 42. bxa3 Kg5) 42. Nc4 {[%emt 0:00:14]} (42. Nf7 $5 {[%cal Rf7d6]}) 42... h4 $2 {[%emt 0:01:15][%mdl 8192]} (42... Kh3 $14) 43. gxh4 $18 {[%emt 0:00:07]} Ne7 {[%emt 0:00:29]} 44. Ne5+ {[%emt 0:00:43]} Kxh4 {[%emt 0:00:17]} 45. Kf4 {[%emt 0:00:57]} Kh3 {[%emt 0:00:43]} 46. c6 $2 {[%emt 0:00:43]} (46. Kg5 $18) 46... Kg2 $11 {[%emt 0:00:08] The position is equal.} 47. Ke3 {[%emt 0:00:09]} Nd5+ {[%emt 0:00:35]} 48. Kd4 {[%emt 0:01:35]} Nc7 {[%emt 0:00:40]} 49. Ke3 {[%emt 0:00:51]} Nd5+ {[%emt 0:00:06]} 50. Kd4 {[%emt 0:01:01]} Nc7 {[%emt 0:00:21]} 51. Ke3 {[%emt 0:00:14]} Nd5+ 52. Ke2 {[%emt 0:01:27]} Nc7 {[%emt 0:00:07] Weighted Error Value: White=0.22 (precise) /Black=0.08 (flawless)} 1/2-1/2

[Event "Oceania Zonal Open 2023"]
[Site "Melbourne"]
[Date "2023.01.25"]
[Round "4.7"]
[White "Papantoniou, John"]
[Black "Solomon, Stephen J"]
[Result "1/2-1/2"]
[ECO "A14"]
[WhiteElo "2067"]
[BlackElo "2279"]
[Annotator "TA"]
[PlyCount "70"]
[EventDate "2023.01.09"]
[EventType "swiss"]
[EventCountry "AUS"]
[SourceTitle "playchess.com"]
[Source "ChessBase"]
[SourceQuality "1"]
[TimeControl "5400+30"]

{[%evp 15,70,0,48,14,43,14,33,23,16,8,8,8,29,26,39,25,33,0,22,0,73,81,85,82,85,86,83,81,89,84,79,69,71,63,65,68,81,76,62,66,68,0,0,0,0,0,0,0,10,0,0,0,0,0,0,0,0]} 1. c4 {[%emt 0:00:03]} e6 {[%emt 0:00:31]} 2. Nf3 {[%emt 0:00:18]} d5 {[%emt 0:00:19]} 3. g3 {[%emt 0:00:05]} Nf6 {[%emt 0:00:16]} 4. Bg2 {[%emt 0:00:05]} Be7 {[%emt 0:00:44]} 5. O-O {[%emt 0:00:11]} O-O {[%emt 0:00:07]} 6. b3 {[%emt 0:00:06]} c5 {[%emt 0:00:40]} 7. Bb2 {[%emt 0:00:07] 7.cxd5 gains popularity.} Nc6 {[%emt 0:00:57]} 8. e3 {[%emt 0:00:06]} a6 {[%emt 0:01:25]} (8... d4 $11) 9. d4 {[%emt 0:10:38] A14: English Opening: 1...e6 with b3 by White.} cxd4 {[%emt 0:14:43]} 10. exd4 {[%emt 0:15:41]} b6 {[%emt 0:02:01]} 11. Qe2 {[%emt 0:09:01] White is slightly better.} Bb7 {[%emt 0:00:43]} 12. Nbd2 {[%emt 0:01:41]} Rc8 {[%emt 0:04:45]} 13. Rac1 {[%emt 0:01:10] [#]} Re8 $146 {[%emt 0:01:43][%cal Ob6b5]} ({Predecessor:} 13... a5 14. Rfd1 Ba6 15. Ne5 a4 16. Nxc6 Rxc6 17. Nf3 Rc7 18. Ne5 Qd6 19. Qe3 Rfc8 {1-0 Lodhi,M (2394)-Borgo,G (2426) WMSG Rapid Team 1st 2008 (9)}) 14. Rfe1 {[%emt 0:07:05]} Nd7 {[%emt 0:18:04]} 15. cxd5 {[%emt 0:28:22]} exd5 {[%emt 0:00:57]} 16. Bh3 {[%emt 0:00:08]} Rc7 {[%emt 0:09:27]} 17. Ne5 {[%emt 0:07:10]} Nf6 {[%emt 0:26:28] [#]} (17... Ndxe5 $11 18. dxe5 Bc5) 18. Nxc6 $1 $16 {[%emt 0:03:03]} ({But not} 18. Nxf7 $2 Kxf7 19. Qd1 Kg8 $19) 18... Rxc6 {[%emt 0:03:05]} 19. Rxc6 {[%emt 0:04:25]} Bb4 {[%emt 0:01:22][%cal Oe8e2] [#]} 20. Re6 {[%emt 0:02:51]} fxe6 {[%emt 0:00:48]} 21. a3 {[%emt 0:00:34]} ({And not} 21. Bxe6+ Kh8 22. Qd1 Bxd2 23. Qxd2 Ne4 24. Rxe4 (24. Bf7 Rf8 $17) 24... dxe4 $17) 21... Bxd2 {[%emt 0:01:11]} 22. Qxd2 {[%emt 0:00:18]} Ne4 {[%emt 0:00:24]} 23. Qd3 {[%emt 0:04:30]} Qf6 {[%emt 0:02:00]} 24. f3 {[%emt 0:00:14]} Ng5 {[%emt 0:01:30]} 25. Bg4 {[%emt 0:01:13]} g6 {[%emt 0:01:05]} 26. Bc1 {[%emt 0:02:41]} Nf7 {[%emt 0:01:33]} 27. Bf4 {[%emt 0:01:19] White is more active.} e5 {[%emt 0:02:07]} 28. dxe5 {[%emt 0:00:13]} (28. Qc3 $14 e4 29. h4) 28... Nxe5 $11 {[%emt 0:00:06] The position is equal.} 29. Bxe5 {[%emt 0:00:37]} Rxe5 {[%emt 0:00:08]} 30. Rxe5 {[%emt 0:00:12]} Qxe5 $14 {[%emt 0:00:05] KQB-KQB} 31. Kf2 {[%emt 0:00:16]} Kf7 {[%emt 0:02:14]} 32. Qe3 {[%emt 0:00:59]} Qb2+ {[%emt 0:02:59]} 33. Qe2 {[%emt 0:00:01]} Qd4+ {[%emt 0:00:54]} 34. Qe3 {[%emt 0:00:04]} Qb2+ {[%emt 0:00:15]} 35. Qe2 {[%emt 0:00:01]} Qf6 {[%emt 0:01:20] Weighted Error Value: White=0.10 (very precise) /Black=0.13 (very precise)} 1/2-1/2

[Event "Oceania Zonal Open 2023"]
[Site "Melbourne"]
[Date "2023.01.25"]
[Round "4.8"]
[White "Koh, Cedric"]
[Black "Nemeth, John"]
[Result "1/2-1/2"]
[ECO "D46"]
[WhiteElo "1970"]
[BlackElo "2157"]
[Annotator "TA"]
[PlyCount "60"]
[EventDate "2023.01.09"]
[EventType "swiss"]
[EventCountry "AUS"]
[SourceTitle "playchess.com"]
[Source "ChessBase"]
[SourceQuality "1"]
[TimeControl "5400+30"]

{[%evp 18,60,31,14,24,15,11,0,0,0,29,-8,9,10,9,11,11,12,11,8,8,8,10,0,14,7,14,1,11,11,11,11,11,11,23,15,10,0,0,0,2,0,4,4,4]} 1. d4 {[%emt 0:00:03]} d5 {[%emt 0:00:07]} 2. c4 {[%emt 0:00:35]} c6 {[%emt 0:00:14]} 3. Nc3 {[%emt 0:00:14]} Nf6 {[%emt 0:00:12]} 4. e3 {[%emt 0:00:03]} e6 {[%emt 0:00:14]} 5. Nf3 {[%emt 0:00:05]} Be7 {[%emt 0:00:19]} 6. b3 {[%emt 0:00:36]} O-O {[%emt 0:00:24]} 7. Bd3 {[%emt 0:00:05]} Nbd7 {[%emt 0:01:13]} 8. O-O {[%emt 0:00:10]} b6 {[%emt 0:01:20]} 9. Bb2 {[%emt 0:00:47]} Bb7 {[%emt 0:00:10]} 10. Rc1 {[%emt 0:00:15]} Rc8 {[%emt 0:01:26] D46: Semi-Slav: 5 e3 Nbd7 6 Bd3, Black avoids the Meran.} 11. Re1 {[%emt 0:01:11]} Re8 {[%emt 0:04:08] [#]} 12. Rc2 $146 {[%emt 0:14:36]} (12. Qd2 {keeps more tension.} Bb4 13. a3 Ne4 14. Qe2) ({Predecessor:} 12. a3 dxc4 13. bxc4 Bd6 14. Qc2 Bb8 15. Ne4 c5 16. Nxf6+ Nxf6 17. d5 exd5 18. cxd5 Bxd5 {1-0 Ribli,Z (2595)-Lazic,M (2481) BIH-chT Neum 2004 (4.2)}) 12... dxc4 {[%emt 0:09:06]} 13. Bxc4 {[%emt 0:02:01]} b5 {[%emt 0:00:25]} 14. Bf1 {[%emt 0:03:14]} b4 {[%emt 0:00:37]} 15. Na4 {[%emt 0:02:15]} c5 {[%emt 0:01:13]} 16. dxc5 {[%emt 0:01:32]} Nxc5 {[%emt 0:00:23]} 17. Nxc5 {[%emt 0:02:14]} Qxd1 {[%emt 0:02:54]} 18. Rxd1 {[%emt 0:00:05] [#] And now Rdc1 would win.} Rxc5 {[%emt 0:02:09]} 19. Rxc5 {[%emt 0:01:00]} Bxc5 {[%emt 0:00:02]} 20. Rc1 {[%emt 0:01:30]} Rc8 {[%emt 0:04:46]} 21. Ne5 {[%emt 0:03:29]} Nd5 {[%emt 0:06:32]} 22. Nd3 {[%emt 0:11:34]} Be7 {[%emt 0:02:39]} 23. Rxc8+ {[%emt 0:06:40]} Bxc8 {[%emt 0:00:01]} 24. Bd4 {[%emt 0:00:43]} a5 {[%emt 0:02:13]} 25. Ne5 {[%emt 0:04:49]} Bb7 {[%emt 0:01:49] Wards off Nc6} 26. Nc4 {[%emt 0:00:47]} Bd8 {[%emt 0:00:11] The position is equal.} 27. a3 {[%emt 0:07:04]} bxa3 {[%emt 0:02:14]} 28. Nxa3 {[%emt 0:00:05]} Be7 {[%emt 0:02:37]} 29. Nc4 {[%emt 0:02:11]} Bb4 {[%emt 0:00:31]} 30. f3 {[%emt 0:04:02]} Bc6 {[%emt 0:02:03] A rather calm draw.   Weighted Error Value: White=0.07 (flawless) /Black=0.05 (flawless)} 1/2-1/2

[Event "Oceania Zonal Open 2023"]
[Site "Melbourne"]
[Date "2023.01.26"]
[Round "4.8"]
[White "Ly, Thai"]
[Black "Cannon, David"]
[Result "1/2-1/2"]
[ECO "B80"]
[WhiteElo "1879"]
[BlackElo "2112"]
[Annotator "TA"]
[PlyCount "65"]
[EventDate "2023.01.09"]
[EventType "swiss"]
[EventCountry "AUS"]
[SourceTitle "playchess.com"]
[Source "ChessBase"]
[SourceQuality "1"]
[TimeControl "5400+30"]

{[%evp 19,65,-12,37,48,42,42,46,41,40,43,48,15,33,0,0,0,0,0,0,0,21,13,16,0,8,-4,10,18,24,23,71,53,72,69,79,72,79,79,80,44,21,0,0,0,0,0,0,0]} 1. e4 {[%emt 0:01:00]} c5 {[%emt 0:00:09]} 2. Nf3 {[%emt 0:00:41]} e6 {[%emt 0:00:06]} 3. Nc3 {[%emt 0:00:31]} d6 {[%emt 0:00:14]} 4. g3 {[%emt 0:01:15]} Nc6 {[%emt 0:00:33]} 5. Bg2 {[%emt 0:00:07]} Nf6 {[%emt 0:00:58]} 6. O-O {[%emt 0:00:45]} Be7 {[%emt 0:00:13]} 7. d4 {[%emt 0:00:05]} cxd4 {[%emt 0:00:09]} 8. Nxd4 {[%emt 0:00:02]} O-O {[%emt 0:01:46]} 9. Nxc6 {[%emt 0:00:37]} bxc6 {[%emt 0:01:08]} 10. e5 {[%emt 0:00:04]} Nd5 {[%emt 0:02:56]} (10... dxe5 $11 11. Qxd8 Rxd8) 11. exd6 $14 {[%emt 0:00:14] B80: Sicilian Scheveningen: 6 g3 and 6 Be3, including English Attack.} Qxd6 {[%emt 0:06:12]} 12. Ne4 {[%emt 0:00:10]} Qc7 {[%emt 0:02:29]} 13. c4 {[%emt 0:02:28] White is slightly better.} Nb6 {[%emt 0:02:53]} 14. Qe2 {[%emt 0:04:31]} e5 {[%emt 0:03:22] [#]} 15. Bd2 $146 {[%emt 0:04:16]} ({Predecessor:} 15. b3 f5 16. Nd2 Bf6 17. Bb2 Bb7 18. Rad1 Rad8 19. Nf3 Rxd1 20. Rxd1 Re8 21. Re1 {1-0 Orev,P (2340)-Zietlow,T Dortmund op 1989 (3)}) 15... a5 {[%emt 0:13:39]} 16. Rfc1 {[%emt 0:04:49]} f5 {[%emt 0:11:30]} 17. Nc3 {[%emt 0:29:19][%cal Oc4c5]} Bb7 {[%emt 0:14:28]} 18. b3 {[%emt 0:03:14]} Nd7 {[%emt 0:02:04]} 19. Na4 {[%emt 0:11:27]} Rae8 {[%emt 0:11:38]} 20. Qe1 {[%emt 0:02:49]} Bd8 {[%emt 0:00:12]} 21. c5 {[%emt 0:00:40][%cal Oa4b6]} e4 {[%emt 0:01:42] [#]} 22. Nb6 $1 {[%emt 0:03:16]} Nxc5 {[%emt 0:02:52][%mdl 64] Remove Defender} (22... Nxb6 23. Bxa5) 23. Rxc5 {[%emt 0:03:57] Nc4 would be deadly.} Qxb6 {[%emt 0:00:09]} 24. Rac1 {[%emt 0:00:36][%cal Rd2a5]} (24. Be3 $5 {[%cal Rg2h3]}) 24... Be7 {[%emt 0:08:20]} (24... Qa7 $11 {should be considered.}) 25. Rxa5 $16 {[%emt 0:00:13]} Ra8 {[%emt 0:06:20]} 26. Bf1 {[%emt 0:01:17]} c5 {[%emt 0:01:15]} 27. Rxa8 {[%emt 0:09:10]} Rxa8 {[%emt 0:00:05]} 28. Be3 {[%emt 0:01:04][%cal Ob3b4]} Bd5 {[%emt 0:03:24]} 29. Qc3 {[%emt 0:02:48][%cal Re3c5]} Rxa2 {[%emt 0:02:42]} 30. Bxc5 {[%emt 0:01:39] The position is equal.} (30. b4 $5 {[%cal Rf1c4]} Qe6 31. Bxc5 Bxc5 32. Qxc5 $14) 30... Bxc5 {[%emt 0:00:22]} (30... Qxb3 $2 31. Qe5 Ra8 32. Bxe7 $18) 31. Qxc5 {[%emt 0:00:07]} Qxc5 {[%emt 0:00:18]} (31... Qxb3 {gets mated.} 32. Qc8+ Kf7 33. Qxf5+ Ke8 34. Rc8+ Ke7 35. Rc7+ {[%mdl 64] Skewer} Kd6 36. Qf4+ Ke6 37. Bh3#) 32. Rxc5 {[%emt 0:00:02]} Bxb3 {[%emt 0:00:42]} 33. Rxf5 {[%emt 0:00:16] Weighted Error Value: White=0.07 (flawless) /Black=0.09 (flawless)} 1/2-1/2